bitfinex-derivatives/quotes_BTCF0:USTF0_20240907
["timestamp","ask_amount","ask_price","bid_price","bid_amount"]
[1725688904437,0.01287,54210.0,54209.0,0.2410782]
[1725688905522,0.01287,54210.0,54209.0,0.35155428]
[1725688905726,0.01287,54210.0,54209.0,0.45322494]
[1725688905921,0.01287,54210.0,54209.0,1.66189847]
[1725688906223,0.01287,54210.0,54209.0,1.66135249]
[1725688906818,0.01287,54210.0,54209.0,1.66178188]
[1725688908632,0.01287,54210.0,54209.0,1.49613055]
[1725688910434,0.01287,54210.0,54209.0,1.6616162]
[1725688910632,0.14744348,54224.0,54222.0,0.092236]
[1725688910931,0.27830282,54223.0,54222.0,0.092236]
[1725688911136,0.38340682,54223.0,54222.0,0.092236]
[1725688912231,0.48117282,54223.0,54218.0,0.092241]
[1725688912528,0.0461,54222.0,54218.0,0.092241]
[1725688912723,0.092241,54219.0,54218.0,0.092241]
[1725688913331,0.0461,54222.0,54218.0,0.092241]
[1725688913536,0.05897,54222.0,54218.0,0.092241]
[1725688913726,0.151206,54222.0,54218.0,0.092241]
[1725688914442,0.151206,54222.0,54219.0,0.092241]
[1725688915740,0.105106,54222.0,54218.0,0.19]
[1725688916036,0.105106,54222.0,54214.0,0.09206637]
[1725688916338,0.105106,54222.0,54214.0,0.29051432]
[1725688918838,0.105106,54222.0,54221.0,0.092238]
[1725688922742,0.105106,54222.0,54221.0,0.09894864]
[1725688925437,0.105106,54222.0,54221.0,0.092238]
[1725688925634,0.16031548,54222.0,54221.0,0.092238]
[1725688926051,0.105106,54222.0,54221.0,0.092238]
[1725688926249,0.16031548,54222.0,54221.0,0.092238]
[1725688926846,0.105106,54222.0,54221.0,0.092238]
[1725688928549,0.16031548,54222.0,54221.0,0.092238]
[1725688929348,0.16031592,54222.0,54221.0,0.092238]
[1725688930956,0.16031592,54222.0,54220.0,0.00671193]
[1725688930957,0.092238,54221.0,54220.0,0.00671193]
[1725688931161,0.092243,54218.0,54217.0,0.092244]
[1725688931457,0.092243,54218.0,54217.0,0.09898989]
[1725688931864,0.105113,54218.0,54217.0,0.09898989]
[1725688932559,0.16032292,54218.0,54217.0,0.09898989]
[1725688934259,0.105113,54218.0,54217.0,0.09898989]
[1725688934462,0.105113,54218.0,54217.0,0.19105626]
[1725688935570,0.105113,54218.0,54217.0,0.33158985]
[1725688935967,0.645605,54217.0,54213.0,0.09222865]
[1725688936167,0.645605,54217.0,54208.0,2.3e-07]
[1725688936168,0.184512,54210.0,54208.0,2.3e-07]
[1725688936370,0.184512,54210.0,54203.0,0.07373321]
[1725688936371,0.092267,54204.0,54203.0,0.07373321]
[1725688936565,0.092267,54204.0,54201.0,0.07373321]
[1725688936566,0.17363017,54204.0,54201.0,0.07373321]
[1725688936874,0.09227,54202.0,54201.0,0.07373321]
[1725688937063,0.092275,54199.0,54198.0,0.07373321]
[1725688937460,0.092275,54199.0,54197.0,0.07373321]
[1725688937665,0.192277,54198.0,54197.0,0.07373321]
[1725688937874,0.239777,54198.0,54193.0,0.07373321]
[1725688938065,0.239777,54198.0,54189.0,0.07373321]
[1725688938066,0.092285,54193.0,54189.0,0.07373321]
[1725688938270,0.105155,54193.0,54190.0,0.09229]
[1725688938464,0.27809526,54192.0,54190.0,0.09229]
[1725688938775,0.29096526,54192.0,54190.0,0.09229]
[1725688942768,0.29096526,54192.0,54191.0,0.092289]
[1725688947073,0.29096526,54192.0,54186.0,0.19]
[1725688947282,0.29096526,54192.0,54185.0,0.0938]
[1725688947283,0.092295,54188.0,54187.0,0.092294]
[1725688947782,0.105165,54188.0,54187.0,0.092294]
[1725688948673,0.01287,54188.0,54187.0,0.092294]
[1725688948874,0.01287,54188.0,54187.0,0.282294]
[1725688961986,0.01287,54188.0,54187.0,0.192294]
[1725688962186,0.01287,54188.0,54187.0,0.26602721]
[1725688962486,0.01287,54188.0,54187.0,0.192294]
[1725688964093,0.01287,54188.0,54187.0,0.4251189]
[1725688965179,0.01287,54188.0,54187.0,0.44291998]
[1725688966189,0.01287,54188.0,54187.0,0.44358005]
[1725688967295,0.01287,54188.0,54187.0,0.33289025]
[1725688967785,0.01287,54188.0,54187.0,0.33289082]
[1725688969189,0.01287,54188.0,54187.0,0.44361954]
[1725688970875,0.01287,54188.0,54187.0,0.33289082]
[1725688971676,0.01287,54188.0,54187.0,0.23289082]
[1725688971880,0.01287,54188.0,54187.0,0.34361863]
[1725688972894,0.105164,54188.0,54187.0,0.25132463]
[1725688973191,0.105164,54188.0,54187.0,0.14059682]
[1725688973986,0.105164,54188.0,54187.0,0.23289282]
[1725688974387,0.1603344,54188.0,54187.0,0.23289282]
[1725688974588,0.2095344,54188.0,54187.0,0.23289282]
[1725688981395,0.1966644,54188.0,54187.0,0.23289282]
[1725688981902,0.154364,54188.0,54187.0,0.23289282]
[1725688982892,0.01287,54188.0,54187.0,0.23289282]
[1725688983397,0.01287,54188.0,54187.0,0.28059282]
[1725688983605,0.01287,54188.0,54187.0,0.37288882]
[1725688983897,0.01287,54188.0,54187.0,0.57970982]
[1725688987487,0.01287,54188.0,54187.0,0.42088882]
[1725688991599,0.01287,54188.0,54187.0,0.280292]
[1725688991894,0.01287,54188.0,54187.0,0.42088313]
[1725688992299,0.01287,54188.0,54187.0,0.53154084]
[1725688992896,0.01287,54188.0,54187.0,0.42088313]
[1725688993297,0.01287,54188.0,54187.0,0.53153948]
[1725688993808,0.01287,54188.0,54187.0,0.42088313]
[1725688994207,0.01287,54188.0,54187.0,0.53153885]
[1725688999503,0.01287,54188.0,54187.0,0.42088313]
[1725689000100,0.01287,54188.0,54187.0,0.58020393]
[1725689004606,0.0551704,54197.0,54196.0,0.09228]
[1725689004905,0.0551704,54199.0,54198.0,0.092277]
[1725689005104,0.0551704,54200.0,54199.0,0.092275]
[1725689005610,0.0680404,54200.0,54199.0,0.092275]
[1725689006496,0.01287,54200.0,54199.0,0.092275]
[1725689007212,0.0680404,54200.0,54199.0,0.092275]
[1725689007400,0.01287,54200.0,54199.0,0.092275]
[1725689009307,0.0680404,54200.0,54199.0,0.092275]
[1725689009506,0.01287,54200.0,54199.0,0.092275]
[1725689010208,0.0680404,54200.0,54199.0,0.092275]
[1725689013606,0.0680404,54200.0,54199.0,0.0976793]
[1725689018413,0.105143,54200.0,54199.0,0.16601511]
[1725689018710,0.105143,54200.0,54199.0,0.092275]
[1725689018711,0.151443,54200.0,54199.0,0.092275]
[1725689019021,0.22507317,54200.0,54199.0,0.092275]
[1725689023124,0.105143,54200.0,54199.0,0.192275]
[1725689023415,0.16043458,54200.0,54199.0,0.192275]
[1725689024311,0.06816158,54200.0,54199.0,0.192275]
[1725689024717,0.01287,54200.0,54199.0,0.192275]
[1725689025611,0.01287,54200.0,54199.0,0.42503251]
[1725689026016,0.01287,54200.0,54199.0,0.28445795]
[1725689026218,0.01287,54200.0,54199.0,0.42502895]
[1725689026619,0.01287,54200.0,54199.0,0.425121]
[1725689026824,0.01287,54200.0,54199.0,0.332846]
[1725689027114,0.01287,54200.0,54199.0,0.44347672]
[1725689027617,0.01287,54200.0,54199.0,0.332846]
[1725689028016,0.01287,54200.0,54199.0,0.44347372]
[1725689033516,0.01287,54200.0,54199.0,0.332843]
[1725689049039,0.105143,54200.0,54199.0,0.140568]
[1725689049228,0.105143,54200.0,54197.0,0.09757947]
[1725689049229,0.01287,54200.0,54197.0,0.09757947]
[1725689049428,0.0497,54199.0,54197.0,0.09213545]
[1725689049637,0.092279,54198.0,54197.0,0.092277]
[1725689050329,0.105149,54198.0,54197.0,0.092277]
[1725689050531,0.105149,54198.0,54197.0,0.32499415]
[1725689050830,0.105149,54198.0,54197.0,0.18441245]
[1725689051224,0.105149,54198.0,54197.0,0.3249942]
[1725689051636,0.105149,54198.0,54197.0,0.092277]
[1725689052439,0.105149,54198.0,54197.0,0.18441245]
[1725689053335,0.105149,54198.0,54197.0,0.32499464]
[1725689053540,0.105149,54198.0,54197.0,0.18441245]
[1725689054632,0.105149,54198.0,54197.0,0.092277]
[1725689054832,0.105149,54198.0,54197.0,0.18441245]
[1725689055542,0.105149,54198.0,54197.0,0.092277]
[1725689056836,0.105149,54198.0,54197.0,0.192277]
[1725689057042,0.105149,54198.0,54197.0,0.42499028]
[1725689057441,0.105149,54198.0,54197.0,0.33285483]
[1725689058944,0.105149,54198.0,54197.0,0.42495813]
[1725689059136,0.105149,54198.0,54197.0,0.33285483]
[1725689059641,0.105149,54198.0,54197.0,0.28437326]
[1725689060034,0.105149,54198.0,54197.0,0.33285787]
[1725689060547,0.105149,54198.0,54197.0,0.42495333]
[1725689060737,0.105149,54198.0,54197.0,0.33285787]
[1725689061937,0.105149,54198.0,54197.0,0.42494629]
[1725689062142,0.105149,54198.0,54197.0,0.33285787]
[1725689062651,0.105149,54198.0,54197.0,0.42494675]
[1725689062848,0.105149,54198.0,54197.0,0.33285787]
[1725689064145,0.105149,54198.0,54197.0,0.33285132]
[1725689064346,0.105149,54198.0,54197.0,0.42493813]
[1725689064545,0.105149,54198.0,54197.0,0.42494156]
[1725689064844,0.105149,54198.0,54197.0,0.33285132]
[1725689065350,0.105149,54198.0,54197.0,0.33285448]
[1725689066138,0.01287,54198.0,54197.0,0.33285448]
[1725689067049,0.105147,54198.0,54197.0,0.23285448]
[1725689067251,0.105147,54198.0,54197.0,0.33285448]
[1725689067748,0.105147,54198.0,54197.0,0.42495661]
[1725689067952,0.105147,54198.0,54197.0,0.33285448]
[1725689068647,0.105147,54198.0,54197.0,0.42497194]
[1725689068838,0.105147,54198.0,54197.0,0.33285448]
[1725689069037,0.105147,54198.0,54197.0,0.192277]
[1725689069244,0.105147,54198.0,54197.0,0.33285407]
[1725689069444,0.01287,54198.0,54197.0,0.33285407]
[1725689069738,0.06816158,54198.0,54197.0,0.42499144]
[1725689070149,0.06816158,54198.0,54197.0,0.42502302]
[1725689070447,0.06816158,54198.0,54197.0,0.33285525]
[1725689070646,0.06816158,54198.0,54197.0,0.42504977]
[1725689071444,0.01287,54198.0,54197.0,0.33285525]
[1725689071644,0.01287,54198.0,54197.0,0.192277]
[1725689071847,0.06819119,54198.0,54197.0,0.28448605]
[1725689072048,0.06819119,54198.0,54197.0,0.42506276]
[1725689072252,0.06819119,54198.0,54197.0,0.33285686]
[1725689072253,0.01287,54198.0,54197.0,0.33285686]
[1725689072653,0.06819119,54198.0,54197.0,0.42507223]
[1725689073655,0.01287,54198.0,54197.0,0.42507223]
[1725689074653,0.01287,54198.0,54197.0,0.33285686]
[1725689074856,0.01287,54198.0,54197.0,0.23285686]
[1725689075055,0.01287,54198.0,54197.0,0.42507673]
[1725689075561,0.01287,54198.0,54197.0,0.33285686]
[1725689079352,0.01287,54198.0,54197.0,0.44348758]
[1725689079756,0.01287,54198.0,54197.0,0.33285686]
[1725689080754,0.01287,54198.0,54197.0,0.51741486]
[1725689080953,0.05536611,54203.0,54197.0,0.49344897]
[1725689081154,0.18429731,54211.0,54201.0,0.11059971]
[1725689081155,0.05536611,54204.0,54201.0,0.11059971]
[1725689081355,0.27793893,54203.0,54202.0,0.27904986]
[1725689081558,0.27793893,54203.0,54202.0,0.37904986]
[1725689081760,0.05536611,54205.0,54204.0,0.092267]
[1725689081951,0.00183,54205.0,54204.0,0.18439245]
[1725689082151,0.27889629,54205.0,54204.0,0.18439245]
[1725689082352,0.27889629,54205.0,54204.0,0.092267]
[1725689085763,0.27889629,54205.0,54204.0,0.09773555]
[1725689086063,0.33421486,54205.0,54204.0,0.09773555]
[1725689086262,0.34525486,54205.0,54204.0,0.09773555]
[1725689087255,0.28993629,54205.0,54204.0,0.09773555]
[1725689090966,0.34524929,54205.0,54204.0,0.09773555]
[1725689091168,0.34524878,54205.0,54204.0,0.09773555]
[1725689091661,0.34524878,54205.0,54204.0,0.17144096]
[1725689092969,0.34524878,54205.0,54204.0,0.09773555]
[1725689094169,0.28993629,54205.0,54204.0,0.09773555]
[1725689095267,0.38220129,54205.0,54204.0,0.09773555]
[1725689098466,0.28993629,54205.0,54204.0,0.33042049]
[1725689098671,0.28993629,54205.0,54204.0,0.23829504]
[1725689098869,0.28993629,54205.0,54204.0,0.23828903]
[1725689100180,0.28993629,54205.0,54204.0,0.33828903]
[1725689106579,0.28993629,54205.0,54204.0,0.54115574]
[1725689106781,0.00104001,54217.0,54205.0,0.092265]
[1725689106971,0.05623219,54221.0,54216.0,0.19204173]
[1725689107166,0.00096,54221.0,54220.0,0.1]
[1725689107371,0.01287,54221.0,54220.0,0.192239]
[1725689107580,0.28985483,54221.0,54220.0,0.192239]
[1725689108273,0.28985483,54221.0,54220.0,0.26577245]
[1725689109172,0.28985483,54221.0,54220.0,0.192239]
[1725689110874,0.28985483,54221.0,54220.0,0.092239]
[1725689111070,0.28985483,54221.0,54220.0,0.192239]
[1725689111982,0.28985483,54221.0,54220.0,0.19777168]
[1725689112183,0.28985483,54221.0,54220.0,0.25285833]
[1725689114173,0.28985483,54221.0,54220.0,0.19777168]
[1725689116174,0.28985483,54221.0,54220.0,0.25285833]
[1725689116372,0.01287,54221.0,54220.0,0.27130513]
[1725689116778,0.01287,54221.0,54220.0,0.19777168]
[1725689117279,0.01287,54221.0,54220.0,0.27115254]
[1725689117672,0.01287,54221.0,54220.0,0.17115254]
[1725689117872,0.01287,54221.0,54220.0,0.27115254]
[1725689118073,0.01287,54221.0,54220.0,0.19777168]
[1725689118290,0.01287,54221.0,54220.0,0.27114023]
[1725689121683,0.01287,54221.0,54220.0,0.29001068]
[1725689121884,0.01287,54221.0,54220.0,0.38224968]
[1725689122980,0.3265,54233.0,54232.0,0.092219]
[1725689123185,0.092211,54237.0,54235.0,0.092213]
[1725689123380,0.105081,54237.0,54235.0,0.092213]
[1725689123587,0.27557255,54236.0,54235.0,0.092213]
[1725689124178,0.28844255,54236.0,54235.0,0.092213]
[1725689125788,0.38065455,54236.0,54235.0,0.092213]
[1725689126387,0.28844255,54236.0,54235.0,0.192213]
[1725689128684,0.28844255,54236.0,54235.0,0.20683154]
[1725689128879,0.28844255,54236.0,54235.0,0.26183326]
[1725689129393,0.28844255,54236.0,54235.0,0.20683154]
[1725689132184,0.28844255,54236.0,54235.0,0.29904554]
[1725689134301,0.01287,54236.0,54235.0,0.37238117]
[1725689135283,0.01287,54236.0,54235.0,0.29904554]
[1725689137397,0.01287,54236.0,54235.0,0.85220554]
[1725689137594,0.0478,54246.0,54245.0,0.092197]
[1725689137895,0.33875684,54246.0,54245.0,0.192197]
[1725689142296,0.35175684,54246.0,54245.0,0.193197]
[1725689142795,0.35175684,54246.0,54245.0,0.19853959]
[1725689142991,0.99699184,54246.0,54245.0,0.001]
[1725689143194,0.092205,54241.0,54238.0,0.05499548]
[1725689143399,0.104075,54241.0,54240.0,0.092205]
[1725689143804,0.37893717,54241.0,54240.0,0.092205]
[1725689144000,0.37793717,54241.0,54240.0,0.092205]
[1725689144808,0.37793717,54241.0,54240.0,0.093205]
[1725689144809,0.38693717,54241.0,54240.0,0.093205]
[1725689145608,0.39693717,54241.0,54240.0,0.094205]
[1725689146908,0.30773217,54241.0,54240.0,0.19965859]
[1725689149099,0.30773217,54241.0,54240.0,0.25465407]
[1725689149413,0.30773217,54241.0,54240.0,0.19965859]
[1725689153411,0.30773217,54241.0,54240.0,0.27298589]
[1725689154800,0.30773217,54241.0,54236.0,9.1e-07]
[1725689154801,1.56081217,54241.0,54236.0,9.1e-07]
[1725689155010,1.56081217,54241.0,54209.0,0.17641461]
[1725689155011,0.092229,54226.0,54222.0,0.12869791]
[1725689155315,0.71083447,54240.0,54217.0,0.05515171]
[1725689155316,0.19207133,54224.0,54217.0,0.05515171]
[1725689155520,0.092248,54215.0,54214.0,0.05515171]
[1725689155816,0.092248,54215.0,54203.0,0.11045008]
[1725689155817,0.092263,54206.0,54201.0,0.0735462]
[1725689156108,0.1,54215.0,54197.0,0.1]
[1725689156109,0.092269,54203.0,54197.0,0.1]
[1725689156307,0.092269,54203.0,54195.0,0.0735462]
[1725689156510,0.27747833,54202.0,54197.0,0.1]
[1725689156827,0.26847833,54202.0,54197.0,0.1]
[1725689157029,0.28134833,54202.0,54197.0,0.1]
[1725689157431,0.28134833,54202.0,54201.0,0.1]
[1725689157916,0.28134833,54202.0,54199.0,0.19]
[1725689159118,0.28134833,54202.0,54199.0,0.168]
[1725689159822,0.28434833,54202.0,54199.0,0.168]
[1725689160238,0.28134833,54202.0,54199.0,0.148]
[1725689160435,0.28134833,54202.0,54194.0,0.0053671]
[1725689160436,0.092276,54199.0,54194.0,0.0053671]
[1725689160738,0.28134833,54202.0,54172.0,0.15251035]
[1725689160739,0.19,54197.0,54180.0,0.0735462]
[1725689161035,0.19,54197.0,54170.0,0.32364]
[1725689161036,0.19,54189.0,54176.0,0.19]
[1725689161423,0.092305,54182.0,54176.0,0.19]
[1725689161623,0.27623106,54188.0,54176.0,0.19]
[1725689161820,0.27814565,54181.0,54176.0,0.19]
[1725689162236,0.092303,54183.0,54176.0,0.19]
[1725689162537,0.27814565,54182.0,54176.0,0.19]
[1725689163134,0.38331965,54182.0,54175.0,0.092316]
[1725689163327,0.092313,54177.0,54173.0,0.289]
[1725689163731,0.105183,54177.0,54173.0,0.289]
[1725689164427,0.105183,54177.0,54174.0,0.092318]
[1725689164428,0.01287,54177.0,54174.0,0.092318]
[1725689165539,0.01287,54177.0,54173.0,0.29016]
[1725689165540,0.01287,54177.0,54175.0,0.092316]
[1725689166627,0.01287,54177.0,54176.0,0.19]
[1725689167024,0.01287,54177.0,54173.0,0.099]
[1725689167234,0.092318,54174.0,54173.0,0.099]
[1725689167539,0.105188,54174.0,54173.0,0.099]
[1725689168033,0.105188,54174.0,54173.0,0.0494]
[1725689172127,0.2883885,54174.0,54173.0,0.331719]
[1725689174738,0.2883885,54174.0,54173.0,0.33713602]
[1725689182847,0.29856054,54174.0,54173.0,0.33713602]
[1725689183542,0.29856054,54174.0,54173.0,0.00541702]
[1725689183737,0.29856054,54174.0,54173.0,0.092319]
[1725689185642,0.29856054,54174.0,54173.0,0.09763183]
[1725689188252,0.29856054,54174.0,54173.0,0.23827028]
[1725689189160,0.29856054,54174.0,54173.0,0.34872036]
[1725689190251,0.29856054,54174.0,54173.0,0.35369897]
[1725689191654,0.29856054,54174.0,54173.0,0.46438324]
[1725689196753,0.29856054,54174.0,54173.0,0.35369897]
[1725689198469,1.63695654,54174.0,54173.0,0.36675141]
[1725689198765,1.65685654,54174.0,54173.0,0.11542869]
[1725689198967,1.66310181,54174.0,54173.0,0.11542869]
[1725689199349,1.66310181,54174.0,54170.0,0.09227988]
[1725689199350,0.092323,54171.0,54170.0,0.09227988]
[1725689199655,0.38115972,54171.0,54170.0,0.34837952]
[1725689200353,0.38115972,54171.0,54170.0,0.20772328]
[1725689201258,0.38115972,54171.0,54170.0,0.1154434]
[1725689203258,0.38115972,54171.0,54169.0,0.09761587]
[1725689203259,0.092325,54170.0,54169.0,0.00533599]
[1725689203457,0.105205,54170.0,54169.0,0.11544307]
[1725689203667,0.3814746,54170.0,54169.0,0.11544307]
[1725689204364,0.3814746,54170.0,54169.0,0.092326]
[1725689206068,0.9352746,54170.0,54169.0,0.092326]
[1725689206472,0.9352746,54170.0,54169.0,0.0977749]
[1725689209055,0.09233,54167.0,54166.0,0.09227988]
[1725689209260,0.092331,54166.0,54165.0,0.18461188]
[1725689209558,0.36756629,54166.0,54165.0,0.3252699]
[1725689209966,1.52140629,54166.0,54165.0,0.09780342]
[1725689210175,1.54445833,54166.0,54165.0,0.00552354]
[1725689210354,0.092333,54165.0,54164.0,0.07371987]
[1725689210558,0.646213,54165.0,54164.0,0.07371987]
[1725689210766,1.259093,54165.0,54164.0,0.07371987]
[1725689210972,1.53756861,54165.0,54164.0,0.07371987]
[1725689212367,0.092335,54164.0,54163.0,0.16605487]
[1725689212565,0.646215,54164.0,54163.0,0.16605487]
[1725689212762,0.92275151,54164.0,54163.0,0.16605487]
[1725689212970,0.93563151,54164.0,54163.0,0.16605487]
[1725689213269,0.38175151,54164.0,54163.0,0.092335]
[1725689214071,0.38175151,54164.0,54163.0,0.09766903]
[1725689214364,0.38175151,54164.0,54163.0,0.17136369]
[1725689217067,0.39192355,54164.0,54163.0,0.17136369]
[1725689219174,0.39192355,54164.0,54163.0,0.09766903]
[1725689219175,0.29958855,54164.0,54163.0,0.09766903]
[1725689221464,0.28670855,54164.0,54163.0,0.09766903]
[1725689221864,0.29958855,54164.0,54163.0,0.09766903]
[1725689223667,0.29958855,54164.0,54152.0,0.09215016]
[1725689223668,0.55388,54163.0,54152.0,0.09215016]
[1725689223873,0.092359,54150.0,54146.0,0.0647324]
[1725689224077,0.18437921,54157.0,54140.0,0.093]
[1725689224078,0.07365087,54148.0,54140.0,0.093]
[1725689224371,0.192374,54141.0,54140.0,0.0459]
[1725689224775,1.372694,54141.0,54140.0,0.0459]
[1725689224977,1.64091709,54141.0,54140.0,0.0459]
[1725689225169,1.64091709,54141.0,54136.0,0.0472]
[1725689225170,0.092381,54137.0,54136.0,0.0472]
[1725689225363,0.192381,54137.0,54136.0,0.0472]
[1725689225570,0.46856409,54137.0,54136.0,0.0472]
[1725689225874,0.48144409,54137.0,54136.0,0.0472]
[1725689226187,0.092385,54135.0,54129.0,0.0467]
[1725689226366,0.092385,54135.0,54130.0,0.0946]
[1725689226562,0.27820377,54134.0,54130.0,0.0946]
[1725689226776,0.29108377,54134.0,54130.0,0.0946]
[1725689227870,0.29108377,54134.0,54130.0,0.186993]
[1725689228472,0.29108377,54134.0,54130.0,0.185693]
[1725689228672,0.29108377,54134.0,54130.0,0.0933]
[1725689228673,0.19,54133.0,54130.0,0.0933]
[1725689228873,0.092391,54132.0,54130.0,0.0933]
[1725689229064,0.38309373,54132.0,54130.0,0.0933]
[1725689230670,0.01017204,54131.0,54130.0,0.0933]
[1725689230870,0.02305204,54131.0,54130.0,0.0933]
[1725689231073,0.02305204,54131.0,54130.0,0.185693]
[1725689234277,0.19,54141.0,54130.0,0.739893]
[1725689234489,0.00108,54153.0,54140.0,0.19]
[1725689234672,0.00108,54153.0,54146.0,0.19]
[1725689234673,0.106324,54153.0,54146.0,0.19]
[1725689234867,0.27526531,54148.0,54147.0,0.138364]
[1725689235075,0.092357,54151.0,54147.0,0.138364]
[1725689235369,0.19,54149.0,54147.0,0.138364]
[1725689235678,0.36762731,54148.0,54147.0,0.046]
[1725689236979,0.38051731,54148.0,54147.0,0.046]
[1725689237581,0.38051731,54148.0,54147.0,0.138364]
[1725689240984,0.28815531,54148.0,54147.0,0.138364]
[1725689241686,0.38051731,54148.0,54147.0,0.138364]
[1725689242784,0.38051731,54148.0,54147.0,0.046]
[1725689243780,0.38051731,54148.0,54145.0,0.092367]
[1725689243781,0.092366,54146.0,54145.0,0.092367]
[1725689243978,0.105256,54146.0,54145.0,0.092367]
[1725689244288,0.38269575,54146.0,54145.0,0.092367]
[1725689245387,0.29032975,54146.0,54145.0,0.092367]
[1725689250379,1.53677575,54146.0,54145.0,0.092367]
[1725689250694,0.93677575,54146.0,54145.0,0.092367]
[1725689251590,0.38269575,54146.0,54145.0,0.092367]
[1725689252985,0.38269575,54146.0,54141.0,0.09779978]
[1725689252986,0.092372,54143.0,54141.0,0.09779978]
[1725689253187,0.092372,54143.0,54139.0,0.0479]
[1725689253499,0.19,54145.0,54141.0,0.092374]
[1725689253500,0.36830057,54142.0,54141.0,0.092374]
[1725689253796,0.282372,54142.0,54141.0,0.092374]
[1725689254192,0.57133573,54142.0,54141.0,0.092374]
[1725689257299,0.57133573,54142.0,54138.0,0.092379]
[1725689257300,0.09238,54139.0,54138.0,0.092379]
[1725689257901,0.38343098,54139.0,54138.0,0.092379]
[1725689258892,0.93755098,54139.0,54138.0,0.092379]
[1725689259690,0.092381,54137.0,54136.0,0.045]
[1725689259895,0.282381,54137.0,54136.0,0.045]
[1725689260099,0.57323959,54137.0,54136.0,0.045]
[1725689260501,0.092386,54134.0,54133.0,0.23353616]
[1725689260688,0.092389,54132.0,54131.0,0.09215016]
[1725689260892,0.092389,54132.0,54129.0,0.0046574]
[1725689260893,0.092405,54123.0,54122.0,0.09215016]
[1725689261101,0.092405,54123.0,54119.0,0.05291838]
[1725689261102,0.09241,54121.0,54119.0,0.05291838]
[1725689261402,0.27660317,54120.0,54119.0,0.140612]
[1725689261606,0.28949317,54120.0,54119.0,0.140612]
[1725689262313,0.38190317,54120.0,54119.0,0.140612]
[1725689263897,0.38190317,54120.0,54119.0,0.0482]
[1725689264201,0.38190317,54120.0,54119.0,0.140612]
[1725689264904,0.28949317,54120.0,54119.0,0.140612]
[1725689271806,0.01289,54120.0,54119.0,1.387344]
[1725689272112,0.35097395,54135.0,54132.0,0.092388]
[1725689272113,0.092388,54133.0,54132.0,0.092388]
[1725689272609,0.38087925,54133.0,54132.0,0.092388]
[1725689277013,0.0924,54126.0,54124.0,0.05516409]
[1725689277202,0.0924,54126.0,54119.0,0.2382]
[1725689277203,0.0924,54126.0,54122.0,0.05516409]
[1725689277403,0.27713778,54125.0,54122.0,0.05516409]
[1725689277598,0.27713778,54125.0,54124.0,0.092403]
[1725689277799,0.38242878,54125.0,54124.0,0.092403]
[1725689278207,0.105291,54125.0,54124.0,0.092403]
[1725689278603,0.383188,54125.0,54124.0,0.092403]
[1725689279507,0.383188,54125.0,54124.0,0.14756709]
[1725689279702,0.383188,54125.0,54124.0,0.092403]
[1725689280503,0.290787,54125.0,54124.0,0.14756709]
[1725689282404,0.290787,54125.0,54124.0,0.092403]
[1725689284518,0.290787,54125.0,54124.0,0.1660684]
[1725689285618,0.390787,54125.0,54124.0,0.1660684]
[1725689286616,0.483188,54125.0,54124.0,0.1660684]
[1725689286807,0.483188,54125.0,54124.0,0.14770711]
[1725689287001,0.483188,54125.0,54124.0,0.092403]
[1725689287421,0.483188,54125.0,54124.0,0.14770711]
[1725689287614,0.483188,54125.0,54124.0,0.092403]
[1725689288138,0.483188,54125.0,54124.0,0.1477232]
[1725689288309,0.483188,54125.0,54124.0,0.092403]
[1725689289417,0.53821687,54125.0,54124.0,0.092403]
[1725689290215,1.09249687,54125.0,54124.0,0.092403]
[1725689290415,1.037468,54125.0,54124.0,0.0736654]
[1725689290609,0.092405,54123.0,54122.0,0.092406]
[1725689290822,0.14762312,54123.0,54122.0,0.092406]
[1725689291007,0.42553332,54123.0,54122.0,0.092406]
[1725689291322,0.43842332,54123.0,54122.0,0.092406]
[1725689291919,0.3832052,54123.0,54122.0,0.092406]
[1725689293426,0.43842332,54123.0,54122.0,0.092406]
[1725689294814,0.3832052,54123.0,54122.0,0.092406]
[1725689295723,0.4832052,54123.0,54122.0,0.092406]
[1725689296220,0.3832052,54123.0,54122.0,0.18455616]
[1725689297118,0.4832052,54123.0,54122.0,0.092406]
[1725689298226,0.53842332,54123.0,54122.0,0.092406]
[1725689302424,0.53842332,54123.0,54119.0,0.14574247]
[1725689302425,0.09241,54120.0,54119.0,0.14574247]
[1725689302624,0.19241,54120.0,54119.0,0.14574247]
[1725689302932,0.48129435,54120.0,54119.0,0.14574247]
[1725689310743,0.57370435,54120.0,54119.0,0.07838581]
[1725689311034,0.48129435,54120.0,54119.0,0.07838581]
[1725689312236,0.48129435,54120.0,54119.0,0.00453047]
[1725689312530,0.092413,54119.0,54118.0,0.092412]
[1725689312736,0.26047667,54119.0,54118.0,0.092412]
[1725689312934,0.539126,54119.0,54118.0,0.092412]
[1725689313737,0.092415,54117.0,54116.0,0.05095955]
[1725689314039,0.38094132,54117.0,54116.0,0.05095955]
[1725689315234,0.38094132,54117.0,54116.0,0.00455955]
[1725689315439,0.38094132,54117.0,54116.0,0.07386058]
[1725689315735,0.43610623,54117.0,54116.0,0.07386058]
[1725689315936,0.38094132,54117.0,54116.0,0.07386058]
[1725689317134,0.092417,54116.0,54115.0,0.07386058]
[1725689317439,0.46870051,54116.0,54115.0,0.07386058]
[1725689317743,0.48159051,54116.0,54115.0,0.07386058]
[1725689319335,0.092418,54115.0,54114.0,0.21733774]
[1725689319636,0.092418,54115.0,54111.0,0.18395016]
[1725689319637,0.092424,54112.0,54111.0,0.13765016]
[1725689319841,0.192424,54112.0,54111.0,0.11934341]
[1725689320038,0.47115376,54112.0,54111.0,0.0455]
[1725689320238,0.52626736,54112.0,54111.0,0.0455]
[1725689320543,0.53915779,54112.0,54111.0,0.0455]
[1725689321338,0.48404376,54112.0,54111.0,0.0455]
[1725689321832,0.092425,54111.0,54110.0,0.0124]
[1725689322246,0.92326503,54111.0,54110.0,0.0124]
[1725689322436,1.61569003,54111.0,54110.0,0.0124]
[1725689322632,1.67080406,54111.0,54110.0,0.0124]
[1725689322932,1.68369406,54111.0,54110.0,0.0124]
[1725689323942,0.184872,54105.0,54104.0,0.00455578]
[1725689324134,0.092442,54101.0,54100.0,0.05538462]
[1725689324439,0.092446,54099.0,54098.0,0.189446]